bitfinex/quotes_SOLUSD_20260208
["timestamp","ask_amount","ask_price","bid_price","bid_amount"]
[1770544479469,2.64628327,87.789,87.76,5.19201636]
[1770544481369,28.47412671,87.8,87.77,5.19201636]
[1770544481666,2.64628327,87.798,87.76,16.58663077]
[1770544482771,2.64628327,87.798,87.77,5.19201636]
[1770544483769,11.38991081,87.797,87.77,5.19201636]
[1770544484069,2.64628327,87.796,87.78,5.19201636]
[1770544484266,2.64628327,87.796,87.77,16.58541409]
[1770544485962,5.19201636,87.81,87.77,5.19201636]
[1770544485963,2.64628327,87.794,87.77,5.19201636]
[1770544486151,2.64628327,87.794,87.76,5.19201636]
[1770544486351,2.64628327,87.789,87.75,5.19201636]
[1770544486559,2.64628327,87.789,87.76,5.19201636]
[1770544486770,2.64628327,87.789,87.75,5.19201636]
[1770544487477,39.86559598,87.795,87.74,5.19201636]
[1770544487478,2.64628327,87.779,87.74,5.19201636]
[1770544487842,2.64628327,87.777,87.75,5.19201636]
[1770544488369,2.64628327,87.777,87.76,5.19201636]
[1770544488668,11.3918572,87.782,87.76,5.19201636]
[1770544488969,2.64628327,87.784,87.77,5.19201636]
[1770544489571,2.64628327,87.794,87.77,5.19201636]
[1770544491472,2.64628327,87.808,87.78,5.19201636]
[1770544492178,2.64628327,87.808,87.79,5.19201636]
[1770544492552,2.64628327,87.815,87.79,5.19201636]
[1770544492751,2.64628327,87.827,87.8,5.19201636]
[1770544492958,11.3853076,87.833,87.81,5.19201636]
[1770544493271,2.64628327,87.832,87.775,5.13032502]
[1770544493573,14.03178497,87.831,87.81,5.19201636]
[1770544493950,2.64628327,87.83,87.81,5.19201636]
[1770544494346,11.3855017,87.831,87.82,5.19201636]
[1770544494763,2.64628327,87.83,87.81,5.19201636]
[1770544495387,0.2,87.84,87.82,5.19201636]
[1770544497179,2.64628327,87.838,87.775,5.13032502]
[1770544497384,2.64628327,87.838,87.8,5.19201636]
[1770544497687,2.84628327,87.84,87.82,5.18707098]
[1770544498558,2.64628327,87.838,87.82,5.18707098]
[1770544499170,2.64628327,87.838,87.81,5.18707098]
[1770544499868,2.64628327,87.836,87.81,5.18707098]
[1770544500177,2.64628327,87.836,87.8,5.18707098]
[1770544500477,2.64628327,87.829,87.765,28.48514566]
[1770544500671,2.64628327,87.829,87.79,5.18707098]
[1770544500872,2.64628327,87.819,87.78,5.18707098]
[1770544502066,2.64628327,87.817,87.78,5.18707098]
[1770544503272,2.64628327,87.817,87.76,5.18707098]
[1770544503273,2.64628327,87.817,87.79,5.18707098]
[1770544503879,2.64628327,87.832,87.81,5.18707098]
[1770544504092,11.3855017,87.831,87.81,5.18707098]
[1770544504465,11.3855017,87.831,87.768,47.74077513]
[1770544504466,2.64628327,87.837,87.82,5.18707098]
[1770544504779,0.2,87.84,87.83,5.18707098]
[1770544505366,0.2,87.84,87.83,13.88568853]
[1770544507859,0.2,87.84,87.82,13.88568853]
[1770544508386,0.2,87.84,87.83,13.88568853]
[1770544511385,0.2,87.85,87.83,13.88568853]
[1770544511684,0.2,87.85,87.84,13.88568853]
[1770544512284,2.64628327,87.87,87.84,13.88568853]
[1770544512484,2.64628327,87.87,87.798,96.81313924]
[1770544512485,2.64628327,87.87,87.85,13.88568853]
[1770544512860,2.64628327,87.87,87.84,13.88568853]
[1770544513986,2.64628327,87.868,87.84,13.88568853]
[1770544514676,2.64628327,87.868,87.85,13.88568853]
[1770544514879,2.64628327,87.876,87.86,13.88568853]
[1770544515284,2.64628327,87.876,87.841,11.38420555]
[1770544515285,0.1,87.88,87.87,13.88568853]
[1770544517181,0.2,87.89,87.87,25.2660105]
[1770544517485,0.2,87.89,87.88,13.88568853]
[1770544519993,0.1,87.9,87.88,13.88568853]
[1770544520197,0.1,87.9,87.89,13.88568853]
[1770544522494,2.64628327,87.914,87.89,13.88568853]
[1770544523287,2.64628327,87.914,87.88,13.88568853]
[1770544524293,2.64628327,87.912,87.88,13.88568853]
[1770544524481,2.64628327,87.91,87.88,13.88568853]
[1770544525105,2.64628327,87.909,87.809,56.79755214]
[1770544525311,2.64628327,87.899,87.86,13.88568853]
[1770544525488,2.64628327,87.899,87.86,5.18000681]
[1770544526181,2.64628327,87.889,87.85,5.18000681]
[1770544526505,2.64628327,87.889,87.86,5.18000681]
[1770544527505,2.64628327,87.889,87.86,13.87617468]
[1770544527809,2.64628327,87.889,87.85,13.87617468]
[1770544528306,2.64628327,87.879,87.84,13.87617468]
[1770544529002,2.64628327,87.879,87.83,13.87617468]
[1770544529702,2.64628327,87.879,87.84,13.87617468]
[1770544530090,2.64628327,87.869,87.83,13.87617468]
[1770544530294,2.64628327,87.859,87.82,13.87617468]
[1770544531116,2.64628327,87.849,87.81,13.87617468]
[1770544531621,2.64628327,87.829,87.79,25.26690835]
[1770544531908,2.64628327,87.829,87.8,13.87617468]
[1770544532291,2.64628327,87.827,87.8,13.87617468]
[1770544532690,2.64628327,87.827,87.79,13.87617468]
[1770544533905,2.64628327,87.827,87.8,13.87617468]
[1770544534811,2.64628327,87.825,87.79,13.87617468]
[1770544535817,2.64628327,87.841,87.81,13.87617468]
[1770544536110,2.64628327,87.859,87.83,13.87617468]
[1770544536408,2.64628327,87.859,87.84,13.87617468]
[1770544539800,2.64628327,87.869,87.84,13.87617468]
[1770544540899,2.64628327,87.879,87.85,13.87617468]
[1770544541692,2.64628327,87.888,87.87,13.87617468]
[1770544542192,2.64628327,87.888,87.811,1.13880948]
[1770544542516,2.64628327,87.879,87.84,13.87617468]
[1770544543001,2.64628327,87.877,87.84,13.87617468]
[1770544543201,2.64628327,87.869,87.83,13.87617468]
[1770544543507,2.64628327,87.859,87.82,13.87617468]
[1770544544094,2.64628327,87.859,87.82,25.26305356]
[1770544544503,2.64628327,87.859,87.83,13.87617468]
[1770544544705,2.64628327,87.877,87.84,13.87617468]
[1770544545325,2.64628327,87.875,87.84,13.87617468]
[1770544547816,2.64628327,87.886,87.86,13.87617468]
[1770544548117,2.64628327,87.886,87.84,13.87617468]
[1770544548303,2.64628327,87.886,87.841,11.38420555]
[1770544549914,2.64628327,87.879,87.827,11.38595319]
[1770544550110,2.64628327,87.879,87.84,5.18171542]
[1770544551900,2.64628327,87.877,87.84,5.18171542]
[1770544552903,2.64628327,87.875,87.84,5.18171542]
[1770544555025,2.64628327,87.875,87.83,5.18171542]
[1770544555199,2.64628327,87.873,87.83,16.56732046]
[1770544555396,2.64628327,87.873,87.83,5.18171542]
[1770544555600,2.64628327,87.873,87.825,11.38620186]
[1770544555601,2.64628327,87.859,87.82,5.18171542]
[1770544556611,2.64628327,87.859,87.83,5.18171542]
[1770544556901,1.08985153,87.859,87.83,5.18171542]
[1770544557321,11.38200277,87.858,87.83,5.18171542]
[1770544557627,39.83700971,87.858,87.82,5.18171542]
[1770544558704,1.8680674,87.857,87.83,5.18171542]
[1770544559025,1.8680674,87.857,87.82,16.56853327]
[1770544559212,1.8680674,87.857,87.83,5.18171542]
[1770544559409,1.8680674,87.857,87.83,5.18345772]
[1770544559724,1.8680674,87.857,87.84,5.18345772]
[1770544560025,1.8680674,87.857,87.83,5.18345772]
[1770544561926,1.8680674,87.855,87.82,5.18345772]
[1770544563607,1.8680674,87.853,87.84,5.18345772]
[1770544564624,1.8680674,87.863,87.84,5.18345772]
[1770544565532,1.8680674,87.861,87.84,13.8804122]
[1770544567131,1.8680674,87.878,87.85,13.8804122]
[1770544567310,11.37954185,87.877,87.85,13.8804122]
[1770544567512,13.24760925,87.877,87.85,13.8804122]
[1770544567711,1.8680674,87.876,87.85,13.8804122]
[1770544569314,1.8680674,87.874,87.85,13.8804122]
[1770544570631,1.8680674,87.874,87.86,13.8804122]
[1770544571236,1.8680674,87.886,87.86,13.8804122]
[1770544571418,28.44207993,87.898,87.86,13.8804122]
[1770544571419,1.8680674,87.884,87.86,13.8804122]
[1770544572137,1.8680674,87.884,87.87,13.3804122]
[1770544572639,1.8680674,87.89,87.87,13.3804122]
[1770544574122,1.8680674,87.888,87.86,13.8804122]
[1770544574817,1.8680674,87.894,87.87,13.8804122]
[1770544575836,1.8680674,87.894,87.86,13.8804122]
[1770544576029,1.8680674,87.892,87.87,13.8804122]
[1770544581121,11.37772923,87.891,87.87,13.8804122]
[1770544581422,1.8680674,87.89,87.87,13.8804122]
[1770544581617,1.8680674,87.89,87.84,13.8804122]
[1770544581618,1.8680674,87.888,87.841,47.74077513]
[1770544581826,1.8680674,87.879,87.84,13.8804122]
[1770544582720,1.8680674,87.879,87.85,13.8804122]
[1770544583116,1.8680674,87.885,87.87,13.8804122]
[1770544583313,11.37744549,87.894,87.87,13.8804122]
[1770544583314,1.8680674,87.891,87.87,13.8804122]
[1770544583517,56.87425641,87.914,87.87,13.8804122]
[1770544583518,1.8680674,87.898,87.87,13.8804122]
[1770544583712,1.8680674,87.898,87.855,28.45582029]
[1770544583713,1.8680674,87.898,87.88,13.8804122]
[1770544584124,1.8680674,87.898,87.84,13.8804122]
[1770544584125,1.8680674,87.91,87.89,13.8804122]
[1770544585544,1.8680674,87.91,87.89,5.17644212]
[1770544586740,1.8680674,87.909,87.89,5.17644212]
[1770544588251,1.8680674,87.907,87.89,5.17644212]
[1770544593456,1.8680674,87.917,87.891,0.02158888]
[1770544594455,1.8680674,87.915,87.884,0.02534948]
[1770544595256,1.8680674,87.915,87.89,5.17644212]
[1770544596164,1.8680674,87.913,87.89,5.17644212]
[1770544597161,1.8680674,87.913,87.884,0.02534948]
[1770544597331,1.8680674,87.911,87.884,0.02534948]
[1770544597959,1.8680674,87.911,87.881,0.0399649]
[1770544598546,1.8680674,87.911,87.881,0.04351445]
[1770544599561,1.8680674,87.919,87.901,0.04702322]
[1770544599746,1.8680674,87.919,87.9,5.17644212]
[1770544600140,0.2,87.92,87.901,0.04702322]
[1770544600340,2.0680674,87.93,87.91,5.17644212]
[1770544601369,0.2,87.93,87.911,0.05049169]
[1770544601546,0.2,87.93,87.92,5.17644212]
[1770544601854,0.2,87.93,87.911,0.05049169]
[1770544602956,0.2,87.93,87.92,5.17644212]
[1770544603170,0.2,87.93,87.916,0.05730956]
[1770544603870,0.2,87.93,87.91,5.17644212]
[1770544604049,2.0680674,87.93,87.911,0.06065989]
[1770544604245,1.8680674,87.928,87.91,5.17644212]
[1770544604549,1.8680674,87.928,87.901,0.06065989]
[1770544605348,1.8680674,87.928,87.91,5.17644212]
[1770544606047,1.8680674,87.926,87.89,5.17644212]
[1770544608264,1.8680674,87.924,87.89,5.17644212]
[1770544608466,1.8680674,87.924,87.89,5.25012286]
[1770544609184,1.8680674,87.924,87.891,0.07684303]
[1770544609560,1.8680674,87.924,87.891,11.37772923]
[1770544609764,1.8680674,87.924,87.9,5.17644212]
[1770544610352,1.8680674,87.929,87.91,5.17644212]
[1770544611162,1.8680674,87.929,87.9,5.2564111]
[1770544611359,1.8680674,87.927,87.9,5.17644212]
[1770544611551,1.8680674,87.927,87.891,0.0861136]
[1770544611874,1.8680674,87.927,87.9,5.17644212]
[1770544612048,1.8680674,87.927,87.891,47.74077513]
[1770544612256,1.8680674,87.919,87.884,0.0861136]
[1770544612458,1.8680674,87.919,87.89,5.17644212]
[1770544612973,1.8680674,87.919,87.88,5.17644212]
[1770544613173,1.8680674,87.919,87.881,0.08913308]
[1770544613364,1.8680674,87.917,87.881,0.08913308]
[1770544614573,1.8680674,87.917,87.89,5.17644212]
[1770544614875,1.8680674,87.917,87.89,5.27151051]
[1770544615782,1.8680674,87.915,87.89,5.17644212]
[1770544615973,1.8680674,87.915,87.885,0.09798501]
[1770544616272,1.8680674,87.915,87.885,11.47645105]
[1770544616478,1.8680674,87.915,87.885,11.37846604]
[1770544617281,1.8680674,87.915,87.885,11.47933417]
[1770544617776,1.8680674,87.915,87.886,0.10371814]
[1770544618575,1.8680674,87.913,87.881,47.84731054]
[1770544618761,1.8680674,87.913,87.876,11.37962959]
[1770544618963,1.8680674,87.913,87.88,5.17644212]
[1770544619173,11.37475259,87.914,87.858,47.74077513]
[1770544619174,1.8680674,87.909,87.871,0.10653541]
[1770544619771,1.8680674,87.907,87.871,0.10653541]
[1770544619968,1.8680674,87.907,87.87,5.17890536]
[1770544620359,1.8680674,87.907,87.87,5.28822569]
[1770544620561,1.8680674,87.899,87.86,5.17890536]
[1770544620761,1.8680674,87.889,87.85,5.29097861]
[1770544621160,1.8680674,87.879,87.85,0.11207325]
[1770544621692,1.8680674,87.879,87.844,11.49860338]
[1770544621891,1.8680674,87.877,87.84,5.17890536]
[1770544622060,1.8680674,87.877,87.837,0.11479456]
[1770544622061,1.8680674,87.849,87.816,0.11479456]
[1770544622267,1.8680674,87.849,87.81,5.17890536]
[1770544622682,1.8680674,87.849,87.81,5.29638997]
[1770544623073,1.8680674,87.849,87.811,0.11748461]
[1770544623279,1.8680674,87.849,87.813,11.38770993]
[1770544625383,1.8680674,87.847,87.813,11.38770993]
[1770544628391,1.8680674,87.847,87.814,0.13298833]
[1770544628888,1.8680674,87.845,87.814,0.13298833]
[1770544629184,1.8680674,87.839,87.808,0.1354694]
[1770544629387,1.8680674,87.839,87.802,0.13792198]
[1770544629569,1.8680674,87.839,87.803,0.13792198]
[1770544629773,1.8680674,87.839,87.808,11.3884404]
[1770544630089,1.8680674,87.839,87.812,0.13792198]
[1770544630382,1.8680674,87.839,87.806,0.13792198]
[1770544632087,1.8680674,87.837,87.806,0.13792198]
[1770544632282,1.8680674,87.837,87.801,11.53213487]
[1770544632675,1.8680674,87.837,87.801,11.38939192]
[1770544632880,1.8680674,87.837,87.802,0.14511198]
[1770544633379,1.8680674,87.837,87.81,5.17890536]
[1770544633763,1.91962012,87.835,87.802,0.14511198]
[1770544634987,1.91962012,87.835,87.8,5.17890536]
[1770544635388,1.91962012,87.835,87.801,0.15205707]
[1770544635575,1.91962012,87.829,87.793,0.15431912]
[1770544635770,1.91962012,87.827,87.796,0.15431912]
[1770544635976,1.91962012,87.827,87.8,5.17890536]
[1770544636368,1.91962012,87.827,87.801,0.15655519]
[1770544638389,1.91962012,87.827,87.795,39.86559598]
[1770544638689,1.91962012,87.827,87.726,45.59602086]
[1770544638690,1.91962012,87.819,87.789,0.16095058]
[1770544639684,11.38718713,87.818,87.789,0.16095058]
[1770544639886,1.91962012,87.809,87.78,0.2]
[1770544640887,1.91962012,87.807,87.78,0.2]
[1770544641875,1.91962012,87.799,87.78,0.2]
[1770544642595,1.91962012,87.789,87.761,11.39448126]
[1770544642773,1.91962012,87.789,87.76,0.2]
[1770544642972,1.91962012,87.787,87.76,0.56944247]
[1770544644201,1.91962012,87.785,87.76,0.56944247]
[1770544644585,1.91962012,87.785,87.761,0.37354351]
[1770544645288,1.91962012,87.785,87.76,5.37890536]
[1770544645289,1.91962012,87.785,87.76,0.2]
[1770544646879,1.91962012,87.783,87.76,0.2]
[1770544648293,1.91962012,87.781,87.76,0.2]
[1770544649295,1.91962012,87.769,87.75,0.2]
[1770544650295,1.91962012,87.768,87.75,0.2]
[1770544651486,1.91962012,87.766,87.75,0.2]
[1770544653101,1.91962012,87.759,87.73,0.59138516]
[1770544653281,13.31368381,87.765,87.73,5.77029052]
[1770544653487,13.31368381,87.765,87.72,0.2]
[1770544653488,1.91962012,87.765,87.741,0.79138516]
[1770544655078,5.13032502,87.795,87.721,47.74077513]
[1770544655079,1.91962012,87.786,87.751,0.79627062]
[1770544655284,1.91962012,87.792,87.761,0.79627062]
[1770544655801,1.81566195,87.789,87.752,0.80136878]
[1770544656101,1.81566195,87.779,87.743,0.80136878]
[1770544656304,1.81566195,87.779,87.76,5.17890536]
[1770544657092,68.53,87.814,87.752,0.80387403]
[1770544657093,1.81566195,87.777,87.752,0.80387403]
[1770544659385,1.81566195,87.775,87.753,11.3956218]
[1770544659587,1.81566195,87.775,87.753,0.80778477]
[1770544661111,11.3926358,87.776,87.751,0.80848957]
[1770544661607,1.81566195,87.776,87.751,0.80848957]
[1770544662717,1.81566195,87.776,87.76,5.17890536]
[1770544663010,1.81566195,87.786,87.77,5.17890536]
[1770544663613,1.81566195,87.793,87.77,5.17890536]
[1770544664193,1.81566195,87.791,87.77,5.17890536]
[1770544665904,11.39081899,87.79,87.767,0.80987498]
[1770544666110,1.81566195,87.789,87.76,5.17890536]
[1770544666295,1.81566195,87.789,87.757,12.20687527]
[1770544666494,1.81566195,87.779,87.745,0.81189399]
[1770544667008,1.81566195,87.779,87.751,0.81255159]
[1770544667512,1.81566195,87.779,87.747,0.81320164]
[1770544667708,1.81566195,87.779,87.75,5.17890536]
[1770544667913,1.81566195,87.779,87.754,0.81320164]
[1770544668211,1.81566195,87.779,87.76,5.17890536]
[1770544669118,1.81566195,87.793,87.771,0.81384422]
[1770544669502,1.81566195,87.793,87.77,5.17890536]
[1770544670517,1.81566195,87.793,87.764,0.81447943]
[1770544670695,1.81566195,87.793,87.771,0.81510733]
[1770544671613,1.81566195,87.792,87.771,0.81510733]
[1770544673417,1.81566195,87.792,87.77,5.17890536]
[1770544674518,1.81566195,87.823,87.781,0.81754766]
[1770544674812,1.81566195,87.816,87.781,0.81754766]
[1770544675321,1.81566195,87.816,87.776,0.81754766]
[1770544675505,1.81566195,87.814,87.776,0.81754766]
[1770544676810,1.81566195,87.812,87.776,0.81754766]
[1770544677220,1.81566195,87.809,87.776,0.81754766]
[1770544677423,1.81566195,87.809,87.777,11.392506]
[1770544677619,1.81566195,87.809,87.777,12.21181131]
[1770544677919,1.81566195,87.809,87.773,0.81930531]
[1770544678626,11.38848396,87.808,87.767,0.81987779]
[1770544678926,11.38848396,87.808,87.762,11.39443978]
[1770544678927,1.81566195,87.779,87.741,0.81987779]
[1770544679225,1.81566195,87.779,87.751,0.81987779]
[1770544679426,1.81566195,87.779,87.75,5.17890536]
[1770544679427,1.81566195,87.779,87.76,5.17890536]
[1770544681024,1.81566195,87.777,87.751,0.82100309]
[1770544681425,1.81566195,87.777,87.755,0.82155606]
[1770544683427,1.81566195,87.777,87.75,5.19263458]
[1770544684709,1.81566195,87.775,87.749,0.82264304]
[1770544685122,1.81566195,87.775,87.751,0.82317717]
[1770544686828,1.85887668,87.773,87.751,0.82317717]
[1770544690732,1.85887668,87.773,87.75,5.19263458]
[1770544690932,1.85887668,87.773,87.749,0.82674826]
[1770544692234,1.85887668,87.771,87.749,0.82674826]
[1770544694629,1.85887668,87.771,87.75,5.19263458]
[1770544695018,1.85887668,87.771,87.75,6.02176247]
[1770544696136,1.83124281,87.769,87.75,6.02176247]
[1770544696735,1.83124281,87.769,87.751,0.83004192]
[1770544697915,1.83124281,87.776,87.751,0.83004192]
[1770544699255,11.39276559,87.775,87.751,0.83004192]
[1770544699432,1.83124281,87.774,87.751,0.83004192]
[1770544699630,11.39276559,87.775,87.751,0.83004192]
[1770544700320,1.83124281,87.774,87.751,0.83004192]
[1770544701341,1.83124281,87.783,87.761,0.83180783]
[1770544704431,1.83124281,87.781,87.757,0.83307973]
[1770544705037,1.83124281,87.781,87.761,0.83349399]
[1770544705936,1.83124281,87.781,87.751,0.8339035]
[1770544706121,1.83124281,87.779,87.751,0.8339035]
[1770544706623,1.83124281,87.779,87.754,0.8343083]
[1770544707443,5.19263458,87.79,87.754,0.8343083]
[1770544707444,1.83124281,87.777,87.754,0.8343083]
[1770544707650,1.83124281,87.777,87.744,0.83470845]
[1770544708652,11.3926358,87.776,87.744,0.83470845]
[1770544708837,1.83124281,87.775,87.744,0.83470845]
[1770544709030,1.83124281,87.775,87.743,11.3968453]
[1770544709231,1.83124281,87.775,87.744,0.83510401]
[1770544710325,1.83124281,87.775,87.746,0.83549502]
[1770544713141,1.83124281,87.775,87.748,0.83664132]
[1770544713639,1.83124281,87.773,87.748,0.83664132]
[1770544714343,1.83124281,87.773,87.751,0.83701467]
[1770544714547,1.83124281,87.796,87.761,0.83738374]
[1770544714746,1.83124281,87.795,87.761,0.83738374]
[1770544715835,1.94492543,87.793,87.761,0.83738374]
[1770544717150,1.94492543,87.791,87.761,0.83738374]
[1770544717546,1.94492543,87.791,87.763,0.8388181]
[1770544718350,1.94492543,87.789,87.751,0.8388181]
[1770544719244,1.94492543,87.787,87.753,0.83916645]
[1770544723260,11.39133802,87.786,87.753,0.83916645]
[1770544723449,1.94492543,87.785,87.753,0.83916645]
[1770544724349,1.94492543,87.783,87.753,0.83916645]
[1770544725065,1.94492543,87.783,87.761,0.84117414]
[1770544727547,11.3918571,87.782,87.761,0.84117414]
[1770544727751,1.94492543,87.781,87.761,0.84117414]
[1770544729564,1.94492543,87.786,87.763,0.84243733]
[1770544731274,1.94492543,87.785,87.763,0.84243733]
[1770544733360,11.39159755,87.784,87.763,0.84243733]
[1770544733561,1.94492543,87.783,87.763,0.84243733]
[1770544734061,1.94492543,87.783,87.752,0.84393641]
[1770544734458,1.94492543,87.783,87.761,0.84422597]
[1770544735448,1.94492543,87.781,87.761,0.84422597]
[1770544736983,1.94492543,87.807,87.761,0.84422597]
[1770544737272,1.94492543,87.807,87.76,5.19263458]
[1770544737273,1.94492543,87.807,87.771,0.84479516]
[1770544738181,11.38874336,87.806,87.771,0.84479516]
[1770544738472,1.94492543,87.805,87.771,0.84479516]
[1770544738672,1.94492543,87.805,87.755,28.4880834]
[1770544738673,5.19263458,87.8,87.761,11.3945794]
[1770544738969,5.19263458,87.8,87.732,56.99139056]
[1770544738970,1.94492543,87.789,87.762,0.84535135]
[1770544739971,1.94492543,87.787,87.762,0.84535135]
[1770544741169,1.94492543,87.785,87.762,0.84535135]
[1770544742260,1.94492543,87.783,87.762,0.84535135]
[1770544742887,1.94492543,87.779,87.757,0.84642591]
[1770544745987,1.87037467,87.777,87.748,0.84745194]
[1770544747185,1.87037467,87.775,87.748,0.84745194]
[1770544747758,1.87037467,87.775,87.743,0.84794744]
[1770544747963,1.87037467,87.769,87.743,0.84794744]
[1770544748584,1.87037467,87.769,87.744,0.84819094]
[1770544748981,1.87037467,87.769,87.746,11.39642203]
[1770544749188,1.87037467,87.773,87.747,0.84819094]
[1770544749385,1.87037467,87.778,87.75,5.19347071]
[1770544749688,1.87037467,87.778,87.751,0.84843163]
[1770544752679,1.87037467,87.778,87.753,0.84913726]
[1770544754390,1.91939604,87.798,87.771,0.84959428]
[1770544754570,1.91939604,87.796,87.771,0.84959428]
[1770544754769,1.91939604,87.796,87.771,11.39315508]
[1770544754977,1.91939604,87.796,87.772,0.84981886]
[1770544756183,1.91939604,87.796,87.774,0.85004085]
[1770544756498,1.91939604,87.817,87.791,0.8502603]
[1770544757473,1.91939604,87.817,87.801,0.85047723]
[1770544758275,1.91939604,87.817,87.8,5.19347071]
[1770544758995,1.91939604,87.817,87.801,0.85069167]
[1770544759587,1.91939604,87.822,87.801,0.85069167]
[1770544761574,1.91939604,87.822,87.803,0.85132031]
[1770544762296,1.91939604,87.832,87.803,0.85132031]
[1770544762496,1.91939604,87.832,87.81,5.19347071]
[1770544763395,1.91939604,87.832,87.811,0.85152506]
[1770544763779,11.38489513,87.836,87.811,0.85152506]
[1770544764195,1.91939604,87.835,87.811,0.85152506]
[1770544767988,1.91939604,87.835,87.82,5.19347071]
[1770544768172,1.91939604,87.835,87.811,0.85152506]
[1770544768775,1.91939604,87.829,87.783,0.85270513]
[1770544768975,1.91939604,87.809,87.77,11.39335216]
[1770544769484,1.91939604,87.809,87.77,12.24624613]
[1770544769681,1.91939604,87.809,87.77,11.39335216]
[1770544769882,1.91939604,87.809,87.771,0.85289397]
[1770544770799,1.91939604,87.807,87.771,0.85289397]
[1770544772004,1.91939604,87.799,87.766,0.85326519]
[1770544772799,1.91939604,87.799,87.773,0.8534476]
[1770544775894,68.53,87.833,87.773,0.8534476]
[1770544775895,1.9103919,87.83,87.773,0.8534476]
[1770544776098,0.053,118.78,87.811,0.85415654]
[1770544776099,1.9103919,87.848,87.811,0.85415654]
[1770544778197,1.9103919,87.848,87.774,111.61276369]
[1770544778198,1.9103919,87.839,87.801,11.38936712]
[1770544778581,5.19347071,87.83,87.801,11.38936712]
[1770544778885,1.9103919,87.829,87.801,11.38936712]
[1770544779908,1.9103919,87.829,87.801,12.24420059]
[1770544780088,1.9103919,87.828,87.8,5.19347071]
[1770544780300,1.9103919,87.828,87.8,17.43771416]
[1770544781190,1.9103919,87.828,87.8,6.04830418]
[1770544781601,1.9103919,87.827,87.8,6.04830418]
[1770544782004,1.9103919,87.827,87.801,11.38939192]
[1770544784682,1.9103919,87.819,87.781,0.85563681]
[1770544785103,1.9103919,87.819,87.784,0.85563681]
[1770544785805,1.9103919,87.818,87.788,0.85579198]
[1770544786015,1.9103919,87.818,87.791,0.85579198]
[1770544786884,1.9103919,87.817,87.786,0.85594537]
[1770544787084,1.9103919,87.817,87.771,0.85594537]
[1770544787390,1.9103919,87.817,87.778,0.85594537]
[1770544787601,1.9103919,87.817,87.78,11.39208157]
[1770544787989,1.9103919,87.815,87.78,0.856097]
[1770544789419,1.9103919,87.815,87.781,0.85624689]
[1770544789907,1.9103919,87.815,87.78,5.19347071]
[1770544790110,11.38770583,87.814,87.781,11.39198687]
[1770544790318,1.9103919,87.813,87.781,12.24838193]
[1770544790913,1.9103919,87.813,87.782,0.85654152]
[1770544792514,1.9103919,87.813,87.784,0.85682942]
[1770544792815,1.9103919,87.811,87.784,0.85682942]
[1770544794025,1.9103919,87.811,87.761,11.0]
[1770544794026,1.9103919,87.799,87.762,0.8569709]
[1770544794223,1.9103919,87.799,87.767,0.8569709]
[1770544795116,1.9103919,87.797,87.771,0.85711075]
[1770544796203,1.9103919,87.789,87.755,11.39529751]
[1770544796520,39.86381855,87.799,87.7,56.78163012]
[1770544796521,1.9103919,87.769,87.729,11.39865655]
[1770544796831,1.9103919,87.759,87.725,0.85738565]
[1770544797033,1.9103919,87.757,87.726,11.39902167]
[1770544797214,1.9103919,87.739,87.72,0.2]
[1770544797519,1.9103919,87.739,87.7,0.2]
[1770544797520,1.9103919,87.729,87.7,0.2]
[1770544797695,1.9103919,87.709,87.7,0.2]
[1770544798098,1.9103919,87.709,87.68,1.92585276]
[1770544798299,1.9103919,87.709,87.671,1.92585276]
[1770544798521,1.9103919,87.709,87.673,1.92585276]
[1770544798699,1.9103919,87.709,87.674,1.92585276]
[1770544798894,1.9103919,87.699,87.67,0.2]
[1770544799099,1.9103919,87.689,87.67,0.2]
[1770544800217,1.9103919,87.689,87.66,0.2]
[1770544800218,1.9103919,87.679,87.66,0.2]
[1770544800421,1.9103919,87.695,87.661,1.92585276]
[1770544800624,1.9103919,87.719,87.681,1.92585276]
[1770544800925,1.9103919,87.718,87.681,1.92585276]
[1770544801218,1.9103919,87.718,87.683,1.92585276]
[1770544801403,1.9103919,87.729,87.701,1.92585276]
[1770544801600,1.9103919,87.799,87.721,1.92585276]
[1770544801800,1.9103919,87.759,87.721,1.92585276]
[1770544802407,1.9103919,87.749,87.721,1.92585276]
[1770544803303,1.9103919,87.758,87.723,1.92585276]
[1770544804519,1.9103919,87.758,87.73,13.91823858]
[1770544805523,1.9103919,87.756,87.73,13.91823858]
[1770544805724,1.81717935,87.779,87.75,13.91823858]
[1770544805928,1.81717935,87.779,87.741,1.88582515]
[1770544806515,1.81717935,87.749,87.706,11.40170963]
[1770544806823,1.81717935,87.74,87.708,11.4014685]
[1770544807027,1.81717935,87.74,87.709,1.88582515]
[1770544807331,1.81717935,87.739,87.71,1.88582515]
[1770544808021,1.81717935,87.757,87.721,1.88582515]
[1770544808330,1.81717935,87.749,87.721,1.88582515]
[1770544808723,1.81717935,87.749,87.711,1.88582515]
[1770544809029,1.81717935,87.747,87.711,1.88582515]
[1770544809522,13.91823858,87.76,87.721,1.88582515]
[1770544809709,1.81717935,87.765,87.731,1.88582515]
[1770544810328,1.81717935,87.765,87.74,15.80406373]
[1770544810528,1.81717935,87.786,87.76,13.91823858]